bitfinex/quotes_ETHUSD_20210701
["timestamp","ask_amount","ask_price","bid_price","bid_amount"]
[1625127667738,17.75,2130.3,2130.2,0.0086402]
[1625127667834,23.54136613,2130.3,2130.2,0.0086402]
[1625127667935,23.54136613,2130.3,2130.1,3.132e-05]
[1625127667936,27.9,2130.2,2130.1,3.132e-05]
[1625127668033,32.91,2130.2,2128.9,9.38714]
[1625127668134,11.81858142,2130.1,2128.9,9.38714]
[1625127668234,11.81858142,2130.1,2128.6,11.72966]
[1625127668332,5.01,2129.9,2128.6,11.72966]
[1625127668437,0.02785754,2129.8,2128.6,11.72966]
[1625127668535,6.63727371,2129.8,2128.6,11.72966]
[1625127668733,6.63727371,2129.8,2128.7,0.08]
[1625127668833,3.52115,2129.5,2128.7,0.08]
[1625127668936,5.83292598,2129.4,2128.7,0.08]
[1625127669032,5.83292598,2129.4,2128.7,7.12199]
[1625127669136,6.11484514,2129.7,2128.8,0.12]
[1625127670089,6.11484514,2129.7,2129.1,7.04071]
[1625127670195,3.52053,2129.9,2129.1,7.04071]
[1625127670393,3.52053,2129.9,2129.2,0.12]
[1625127670642,3.52053,2129.9,2129.3,0.12]
[1625127670844,5.78651653,2129.8,2128.6,12.95326158]
[1625127670943,5.84175073,2129.8,2128.6,12.02478579]
[1625127671042,5.84175073,2129.8,2128.6,11.72966]
[1625127671146,12.88323073,2129.8,2129.0,7.04097]
[1625127671986,12.83323073,2129.8,2129.0,7.04097]
[1625127672084,5.88504494,2129.7,2129.0,7.04097]
[1625127672184,3.52053,2129.9,2129.1,0.06]
[1625127672287,19.90874,2130.4,2129.1,0.06]
[1625127672386,4.84357,2130.6,2129.1,4.5095]
[1625127672485,6.07217214,2130.5,2129.2,0.03367105]
[1625127672587,5.86902471,2130.2,2129.2,0.2]
[1625127672687,6.44917956,2130.5,2129.2,0.2]
[1625127672785,10.0745,2130.3,2129.3,0.08]
[1625127672986,15.98676383,2130.3,2129.3,0.08]
[1625127673185,15.98676383,2130.3,2129.5,7.03921]
[1625127673895,10.0745,2130.3,2129.5,7.03921]
[1625127674496,5.80921893,2130.2,2129.5,7.03921]
[1625127674597,10.0745,2130.3,2129.5,7.03921]
[1625127674697,5.83843426,2130.2,2129.5,7.03921]
[1625127674796,10.0745,2130.3,2129.5,7.03921]
[1625127674896,5.80746724,2130.2,2129.5,7.03921]
[1625127674997,10.0745,2130.3,2129.5,7.03921]
[1625127675297,5.80614756,2130.2,2129.5,7.03921]
[1625127675400,5.01,2130.1,2129.2,9.38615]
[1625127675499,5.01,2130.0,2129.2,9.38615]
[1625127675601,6.00417772,2130.0,2129.3,7.03999]
[1625127675799,6.00417772,2130.0,2129.2,9.33615]
[1625127676143,6.00417772,2130.0,2129.6,0.007572]
[1625127676344,5.01,2129.8,2129.6,0.007572]
[1625127676440,34.51530489,2129.7,2129.6,0.007572]
[1625127676740,34.49652559,2129.7,2129.6,0.007572]
[1625127677245,49.53875559,2129.7,2129.6,0.007572]
[1625127677347,51.93399696,2129.7,2129.6,0.007572]
[1625127677446,52.08399696,2129.7,2129.6,0.007572]
[1625127677542,5.01,2129.5,2128.2,10.1603]
[1625127677643,5.11863936,2129.4,2128.2,10.1603]
[1625127677744,7.04424,2129.1,2128.2,10.1603]
[1625127677843,0.00698386,2129.0,2127.7,11.73639]
[1625127677944,5.97167206,2129.0,2127.7,11.73639]
[1625127678143,5.97167206,2129.0,2127.9,0.04]
[1625127678399,5.97834866,2129.0,2128.3,7.04334]
[1625127678554,0.00698386,2129.0,2128.3,7.04334]
[1625127678653,0.00698386,2129.0,2128.4,0.04]
[1625127678748,6.16056022,2129.3,2128.4,0.04]
[1625127678848,10.5922,2129.4,2128.4,0.04]
[1625127679150,9.0922,2129.4,2128.4,0.04]
[1625127679351,10.3272,2129.7,2128.5,0.08]
[1625127679548,5.92820944,2129.8,2128.2,12.9109299]
[1625127679549,6.15145839,2129.8,2128.2,12.9109299]
[1625127679653,5.74709543,2129.6,2129.1,7.04082]
[1625127679753,10.0693,2129.9,2129.1,7.04082]
[1625127679950,13.69215,2130.2,2129.1,7.04082]
[1625127680050,5.94762039,2130.1,2129.1,7.04082]
[1625127680148,13.64215,2130.2,2129.1,7.04082]
[1625127680250,5.85157266,2130.1,2129.2,0.04]
[1625127680450,3.47045,2130.2,2129.2,0.04]
[1625127680548,5.77954765,2130.1,2128.8,0.03944961]
[1625127680716,10.20708363,2130.5,2128.9,3.519672]
[1625127680794,6.1375878,2130.4,2129.4,7.0396]
[1625127680896,6.13726096,2130.4,2129.4,7.0396]
[1625127681297,5.01,2130.2,2129.4,7.0396]
[1625127681599,5.01,2130.2,2129.5,0.04]
[1625127681797,5.01,2130.2,2129.5,7.07925]
[1625127681992,6.13726096,2130.4,2129.5,7.07925]
[1625127682195,6.13726096,2130.4,2129.5,7.03925]
[1625127682594,6.13726096,2130.4,2129.3,9.3858]
[1625127682799,8.52997,2130.5,2129.3,9.3858]
[1625127682910,3.51997,2130.5,2129.3,12.44]
[1625127683061,16.52859541,2130.6,2129.3,12.44]
[1625127683062,10.55867,2130.6,2129.4,0.16]
[1625127683160,3.51971,2130.6,2129.4,0.16]
[1625127683257,9.41706105,2130.6,2129.4,0.16]
[1625127683358,5.89735105,2130.6,2129.4,0.16]
[1625127684168,5.01,2130.4,2129.4,0.16]
[1625127684259,12.04949,2130.4,2129.6,9.38452]
[1625127684662,7.03949,2130.4,2129.6,9.38452]
[1625127685161,5.8131164,2130.3,2129.6,9.38452]
[1625127685258,5.82235393,2130.3,2129.3,9.3858]
[1625127685360,5.82235393,2130.3,2129.4,7.03987]
[1625127685361,7.04006,2130.2,2129.4,7.03987]
[1625127685458,5.76967935,2130.1,2129.3,9.3858]
[1625127685558,5.743395,2130.1,2129.3,9.3858]
[1625127685659,6.85,2130.4,2129.3,0.3858]
[1625127685660,6.01802469,2130.3,2129.3,0.3858]
[1625127685958,5.01,2130.1,2129.0,9.38709]
[1625127686263,5.01,2130.0,2129.0,9.38709]
[1625127686560,7.04101,2129.9,2129.1,7.04086]
[1625127686961,7.04101,2129.9,2129.0,9.38709]
[1625127687388,7.04101,2129.9,2129.1,0.00663246]
[1625127687988,7.04101,2129.9,2129.1,7.04718246]
[1625127688087,7.04101,2129.9,2129.2,0.06]
[1625127688188,7.04101,2129.9,2129.1,7.04718246]
[1625127689093,3.52051,2130.0,2129.1,7.04718246]
[1625127689492,3.52051,2130.0,2129.3,5.01]
[1625127689836,3.52051,2130.0,2129.2,5.01]
[1625127689935,3.52051,2130.0,2129.3,5.01]
[1625127690038,3.52051,2130.0,2129.3,0.14]
[1625127691238,3.52051,2130.0,2129.4,7.03971]
[1625127691539,13.0,2129.9,2129.4,7.03971]
[1625127696294,13.0,2129.9,2129.4,7.96550633]
[1625127696395,13.0,2129.9,2129.4,7.03971]
[1625127696502,4.8440005,2131.0,2129.6,35.68226707]
[1625127696599,6.0193462,2131.1,2129.8,5.01]
[1625127696699,5.93772136,2131.2,2129.9,0.21313403]
[1625127696810,6.78343148,2130.8,2129.9,0.21313403]
[1625127696898,3.51892,2130.9,2129.9,0.21313403]
[1625127696997,6.5240278,2130.8,2129.8,0.05332681]
[1625127697099,10.0429978,2130.8,2129.8,0.006956]
[1625127697396,3.51892,2130.9,2129.9,0.04]
[1625127697501,6.05200262,2130.8,2129.9,0.04]
[1625127697599,6.27308328,2131.1,2129.9,0.04]
[1625127697700,15.65629328,2131.1,2130.0,1.443]
[1625127697796,9.9139,2131.2,2130.0,1.443]
[1625127697797,19.45345057,2131.2,2130.0,3.0984]
[1625127697998,13.05905057,2131.2,2130.0,2.9984]
[1625127698098,13.05905057,2131.2,2130.0,1.5554]
[1625127698198,13.05905057,2131.2,2129.9,9.38455]
[1625127698497,3.51993,2130.8,2129.9,0.00630143]
[1625127698681,7.0408,2130.4,2129.9,0.00630143]
[1625127698775,6.0418401,2130.3,2129.9,0.00630143]
[1625127698878,4.9438,2130.3,2129.9,0.00630143]
[1625127699075,5.01,2130.1,2129.9,0.00630143]
[1625127699282,6.03017971,2130.0,2129.9,0.00630143]
[1625127699385,6.03017971,2130.0,2129.9,1.43e-06]
[1625127699386,34.18017971,2130.0,2129.9,1.43e-06]
[1625127699587,42.37017971,2130.0,2129.9,1.43e-06]
[1625127699879,44.22401639,2130.0,2129.9,1.43e-06]
[1625127700177,44.22401639,2130.0,2128.5,10.9453]
[1625127700277,3.52177,2129.5,2128.5,10.9453]
[1625127700382,6.3631589,2129.4,2128.3,11.73503]
[1625127700475,6.44585687,2129.4,2128.3,11.73503]
[1625127700775,0.02813692,2129.3,2128.1,10.2534]
[1625127700893,0.03665528,2129.3,2128.4,7.04366]
[1625127700990,13.48938687,2129.4,2128.4,7.04366]
[1625127701488,6.44585687,2129.4,2128.4,7.04366]
[1625127701590,6.44585687,2129.4,2128.5,0.04]
[1625127701796,6.59077,2129.5,2128.6,5.01]
[1625127701893,10.11254,2129.5,2128.6,12.05298]
[1625127701999,10.11254,2129.5,2128.7,0.08]
[1625127702091,3.069,2129.5,2128.7,0.08]
[1625127702193,3.069,2129.5,2128.6,5.01]
[1625127702294,1.4251,2129.6,2128.6,5.01]
[1625127702391,1.4251,2129.6,2128.8,0.01657197]
[1625127702796,1.4051,2129.6,2128.8,0.01657197]
[1625127702893,6.58985315,2129.8,2128.8,0.01657197]
[1625127703247,0.15,2129.8,2128.8,0.01657197]
[1625127703349,0.15,2129.8,2128.9,0.06]
[1625127703449,9.69790645,2130.0,2128.9,0.06]
[1625127703549,16.81645514,2130.2,2129.0,5.01]
[1625127703746,16.81645514,2130.2,2128.9,5.07]
[1625127703846,16.81645514,2130.2,2129.1,0.08]
[1625127703954,16.81645514,2130.2,2129.1,3.9524]
[1625127704148,16.81645514,2130.2,2129.3,5.01]
[1625127704349,10.8778,2130.3,2129.4,0.16]
[1625127704848,6.10437062,2130.2,2129.4,0.16]
[1625127704955,6.10437062,2130.2,2129.5,7.04025]
[1625127705057,6.10437062,2130.2,2129.3,14.39699]
[1625127705148,6.10437062,2130.2,2129.3,9.38699]
[1625127705250,6.10437062,2130.2,2129.0,9.38775]
[1625127705397,6.10437062,2130.2,2128.8,10.19897197]
[1625127705398,5.01,2130.0,2128.8,10.19897197]
[1625127705494,6.45149064,2129.9,2128.8,0.01657197]
[1625127705598,1.8436,2130.4,2128.8,0.01657197]
[1625127705695,8.43856735,2130.3,2128.7,19.44248]
[1625127705801,5.01,2130.1,2128.7,10.0532]
[1625127705895,8.53114,2130.1,2128.7,10.0532]
[1625127705994,6.72595614,2130.0,2128.7,10.0532]
[1625127706797,7.04229,2129.9,2129.0,7.04214]
[1625127706898,7.07508559,2129.8,2128.7,9.38928]
[1625127707000,7.07508559,2129.8,2128.4,21.2905]
[1625127707001,5.01,2129.7,2128.4,21.2905]
[1625127707101,6.62255595,2129.6,2128.4,21.2905]
[1625127707199,6.30262471,2129.6,2128.4,21.2905]
[1625127707498,6.2052388,2129.8,2128.4,24.8113244]
[1625127707670,0.0061916,2129.9,2128.5,5.73411234]
[1625127707754,0.0061916,2129.9,2128.9,0.29252746]
[1625127707852,0.0061916,2129.9,2129.0,9.3879]
[1625127707955,0.0061916,2129.9,2129.0,15.1593]
[1625127708080,0.0061916,2129.9,2129.0,15.1993]
[1625127708149,0.0061916,2129.9,2129.2,5.01]
[1625127708352,6.42045952,2130.6,2129.3,5.01]
[1625127708450,6.42045952,2130.6,2129.3,5.21]
[1625127708733,27.2487,2130.7,2129.3,5.21]
[1625127708827,20.3987,2130.7,2129.4,6.35312048]
[1625127708933,20.3987,2130.7,2130.0,7.0374]
[1625127709029,10.037,2130.7,2130.0,7.0374]
[1625127709133,38.69159,2131.4,2130.0,7.0374]
[1625127709231,6.67181548,2131.3,2130.2,5.01]
[1625127709331,6.67181548,2131.3,2130.1,5.01]
[1625127709735,6.67181548,2131.3,2130.2,0.06]
[1625127709991,6.67181548,2131.3,2130.5,7.03703]
[1625127710296,3.51937,2131.2,2130.0,0.04869131]
[1625127710395,3.51981,2130.9,2129.7,5.01]
[1625127710596,6.67703913,2130.8,2129.5,5.01]
[1625127710693,6.67703913,2130.8,2129.4,5.01]
[1625127710694,10.28823913,2130.8,2129.4,5.01]
[1625127711997,10.28823913,2130.8,2129.9,7.03881]
[1625127713040,3.6112,2130.8,2130.1,5.01]
[1625127713146,6.87642909,2131.2,2130.1,5.01]
[1625127713242,7.03801,2131.1,2130.3,7.03752]
[1625127713343,6.17283601,2131.0,2130.4,0.08]
[1625127713542,11.51896,2131.3,2130.1,9.38336]
[1625127713543,10.49565594,2131.2,2130.1,9.38336]
[1625127713742,10.49565594,2131.2,2130.0,5.01]
[1625127713843,3.51937,2131.1,2129.8,9.38372]
[1625127713944,6.64293755,2131.0,2129.8,9.38372]
[1625127714045,14.64293755,2131.0,2129.8,9.38372]
[1625127714390,8.0,2131.0,2129.8,9.38372]
[1625127714491,3.51937,2131.1,2129.8,9.38372]
[1625127714591,9.38402,2131.4,2129.8,9.38372]
[1625127714693,6.08452362,2131.0,2129.9,0.2]
[1625127714793,6.39200671,2131.3,2130.0,5.01]
[1625127715089,6.39200671,2131.3,2130.0,5.07]
[1625127715344,6.39200671,2131.3,2130.0,5.01]
[1625127715443,6.39200671,2131.3,2130.1,0.1]
[1625127715542,6.39200671,2131.3,2130.1,3.7549]
[1625127715843,6.39200671,2131.3,2130.3,5.01]
[1625127716148,6.39200671,2131.3,2130.7,7.03612]
[1625127716242,6.39200671,2131.3,2130.7,12.08092]
[1625127716347,16.54071184,2131.5,2130.7,12.08092]
[1625127717245,6.18881184,2131.5,2130.7,12.08092]
[1625127717347,6.85,2131.6,2130.9,5.01]
[1625127718095,6.85,2131.6,2130.7,5.01]
[1625127718096,6.19867665,2131.5,2130.7,5.01]
[1625127718296,6.85,2131.6,2130.7,5.01]
[1625127718394,13.88658,2131.6,2130.7,5.01]
[1625127718496,6.00597571,2131.5,2130.7,5.01]
[1625127718907,6.00597571,2131.5,2130.5,9.38138]
[1625127719112,6.00597571,2131.5,2130.0,10.4462]
[1625127719214,10.83197571,2131.5,2130.0,10.4462]
[1625127719811,21.38788571,2131.5,2130.0,10.4462]
[1625127719908,0.01946903,2131.4,2130.0,10.4462]
[1625127720509,22.50810946,2131.5,2130.0,10.4462]
[1625127720912,26.02698946,2131.5,2130.0,10.4462]
[1625127721170,7.03774,2131.3,2130.1,0.14]
[1625127721268,6.51126978,2131.2,2130.1,0.14]
[1625127721672,6.51126978,2131.2,2130.2,5.01]
[1625127722373,6.51126978,2131.2,2130.2,14.39263]
[1625127722675,6.51126978,2131.2,2130.3,0.06]
[1625127722782,7.03784,2131.5,2130.3,0.06]
[1625127722783,6.61074289,2131.4,2130.3,0.06]
[1625127723077,5.61074289,2131.4,2130.3,0.06]
[1625127723176,7.03784,2131.5,2130.3,0.06]
[1625127723272,13.86036764,2131.6,2130.3,0.06]
[1625127723424,6.85,2131.6,2130.3,5.07]
[1625127723507,14.00023668,2131.6,2130.3,5.01]
[1625127723680,21.03661668,2131.6,2130.4,0.04]
[1625127723781,21.88638,2131.6,2130.3,14.39225]
[1625127723880,28.86347732,2131.6,2130.3,14.39225]
[1625127723979,14.85,2131.6,2130.3,14.39225]
[1625127724582,6.85,2131.6,2130.3,14.39225]
[1625127725085,10.36854,2131.6,2130.3,14.39225]
[1625127725184,7.03733,2131.3,2130.3,14.39225]
[1625127725282,10.36854,2131.6,2130.3,14.39225]
[1625127725386,6.85,2131.6,2130.4,6.82727146]
[1625127725482,6.85,2131.6,2130.4,6.96815543]
[1625127725655,6.85,2131.6,2130.6,5.01]
[1625127725744,6.85,2131.6,2130.7,0.18]
[1625127726145,6.85,2131.6,2130.6,6.2981]
[1625127726248,13.88634,2131.6,2130.8,7.0358]
[1625127726348,13.88634,2131.6,2130.6,1.2881]
[1625127726646,21.88634,2131.6,2130.6,1.2881]
[1625127726745,14.85,2131.6,2130.6,1.2881]
[1625127726844,6.85,2131.6,2130.5,6.1784]
[1625127726945,6.85,2131.6,2130.5,5.01]
[1625127727447,7.037,2131.4,2130.5,12.04671]
[1625127727993,3.51869,2131.5,2130.5,12.04671]
[1625127728091,10.36847,2131.6,2130.5,12.04671]
[1625127728291,6.85,2131.6,2130.6,0.06]
[1625127728590,6.85,2131.6,2130.7,0.1]
[1625127728793,10.3873,2131.9,2131.0,7.03507]
[1625127728891,6.41454759,2131.8,2131.0,7.03507]
[1625127729196,6.41454759,2131.8,2131.2,5.01]
[1625127729493,9.66887295,2132.0,2131.3,0.08]
[1625127729592,9.57027057,2132.0,2131.3,0.08]
[1625127729792,9.57027057,2132.0,2131.2,5.01]
[1625127730246,9.57027057,2132.0,2131.2,12.04412]
[1625127730347,13.27619369,2132.2,2131.2,12.04412]
[1625127730445,6.24125035,2132.2,2131.2,15.48962]
[1625127730546,21.5613,2132.3,2131.3,0.04]
[1625127730644,6.201257,2132.2,2131.3,5.05]
[1625127730844,6.201257,2132.2,2131.4,5.01]
[1625127731449,10.6143,2132.3,2131.4,5.01]
[1625127731548,10.6143,2132.3,2131.6,7.03288]
[1625127731652,6.20602493,2132.3,2131.6,7.03288]
[1625127731748,14.20602493,2132.3,2131.6,7.03288]
[1625127731847,6.20602493,2132.3,2131.6,7.03288]
[1625127732049,14.20602493,2132.3,2131.7,0.04]
[1625127732251,14.20602493,2132.3,2131.6,7.03288]
[1625127732497,6.20602493,2132.3,2131.6,7.03288]
[1625127733198,6.20602493,2132.3,2131.4,5.01]
[1625127733299,6.20602493,2132.3,2131.5,5.01]
[1625127733898,6.20602493,2132.3,2131.2,5.01]
[1625127734397,14.20602493,2132.3,2131.2,5.01]
[1625127734642,6.81876663,2132.1,2131.3,0.08]
[1625127734744,6.8433179,2132.1,2131.0,7.03507]
[1625127734843,6.8433179,2132.1,2130.8,10.3146]
[1625127734944,11.8321179,2132.1,2130.8,10.3146]
[1625127735143,0.01085713,2132.0,2130.8,10.3146]
[1625127735445,0.01085713,2132.0,2130.7,9.3801]
[1625127735550,0.01085713,2132.0,2130.5,10.9659]
[1625127735551,5.01,2131.9,2130.5,10.9659]
[1625127735648,8.01235417,2131.8,2130.5,10.9659]
[1625127735748,6.72032115,2131.5,2130.5,7.03618]
[1625127735846,11.36624579,2131.5,2130.5,7.03618]
[1625127735946,11.36624579,2131.5,2130.6,0.1]
[1625127736146,11.36624579,2131.5,2130.5,7.03618]
[1625127737012,0.15,2131.4,2130.3,10.2611]
[1625127737113,5.01,2131.3,2130.3,10.2611]
[1625127737213,5.03233719,2131.3,2130.3,10.2611]
[1625127737312,5.01,2131.0,2129.9,11.72371]
[1625127737412,5.01,2131.0,2129.5,0.13738225]
[1625127737413,6.80653356,2130.9,2129.5,0.13738225]
[1625127737512,6.81986076,2130.9,2129.5,0.13738225]
[1625127737812,6.81986076,2130.9,2129.6,0.06]
[1625127738214,7.03897,2130.6,2129.8,7.03861]
[1625127738511,6.75877074,2130.9,2129.8,7.03861]
[1625127738734,6.75877074,2130.9,2129.9,0.14]
[1625127738934,6.75877074,2130.9,2130.0,0.1]
[1625127739178,6.29494056,2131.1,2130.1,5.01]
[1625127739270,6.29494056,2131.1,2130.4,7.03684]
[1625127739471,6.01058286,2131.1,2130.4,7.03684]
[1625127739574,6.01058286,2131.1,2130.2,0.08]
[1625127739670,6.61059269,2131.3,2130.2,0.08]
[1625127739873,6.61059269,2131.3,2130.3,0.08]
[1625127739973,6.61059269,2131.3,2130.1,14.39282]
[1625127740172,13.46059269,2131.3,2130.1,14.39282]
[1625127740369,9.38356,2131.2,2130.1,14.39282]
[1625127740470,6.14530407,2131.1,2130.1,14.39282]
[1625127741997,13.18265407,2131.1,2130.1,14.39282]
[1625127742198,13.18265407,2131.1,2130.2,5.01861359]
[1625127742399,13.18265407,2131.1,2130.3,5.01]
[1625127742802,6.14530407,2131.1,2130.3,5.01]
[1625127742900,6.14530407,2131.1,2130.2,0.00861359]
[1625127743102,6.14530407,2131.1,2130.4,0.12]
[1625127743202,13.18265407,2131.1,2130.4,7.1569]
[1625127743505,13.18265407,2131.1,2130.4,0.12]
[1625127743752,13.18265407,2131.1,2130.3,5.01]
[1625127743954,13.18265407,2131.1,2130.2,0.00861359]
[1625127744351,21.18265407,2131.1,2130.2,0.00861359]
[1625127744451,7.03807,2130.8,2130.2,0.00861359]
[1625127745919,7.03751,2131.0,2130.2,0.00861359]
[1625127746014,6.14530407,2131.1,2130.2,0.00861359]
[1625127746114,6.14530407,2131.1,2130.3,0.12]
[1625127746219,6.14530407,2131.1,2130.3,5.13]
[1625127746413,6.14530407,2131.1,2130.4,0.14]
[1625127746526,3.51849,2130.9,2130.4,0.14]
[1625127746715,6.1908378,2130.8,2130.2,5.01861359]
[1625127746818,6.1908378,2130.8,2130.2,0.00861359]
[1625127747017,13.2289978,2130.8,2130.2,0.00861359]
[1625127748658,7.03816,2130.8,2130.2,0.00861359]
[1625127748759,9.51335478,2130.9,2130.2,0.00861359]
[1625127748857,3.51849,2130.9,2130.2,0.00861359]
[1625127748954,6.11835968,2130.8,2130.2,0.00861359]
[1625127749257,6.11835968,2130.8,2130.2,5.01861359]
[1625127749360,13.15640968,2130.8,2130.2,0.00861359]
[1625127749461,6.11835968,2130.8,2130.2,0.00861359]
[1625127749957,3.51849,2130.9,2130.2,0.00861359]
[1625127750259,9.77441658,2130.9,2130.2,0.00861359]
[1625127751008,3.51849,2130.9,2130.2,0.00861359]
[1625127751310,9.77550662,2130.9,2130.2,0.00861359]
[1625127751609,9.77550662,2130.9,2130.3,0.12]
[1625127751710,3.51849,2130.9,2130.3,0.12]
[1625127751809,9.58736858,2130.9,2130.2,0.00861359]
[1625127752678,8.0,2130.7,2130.2,0.00861359]
[1625127752862,8.0,2130.7,2130.3,0.04]
[1625127753064,8.0,2130.7,2130.2,0.00861359]
[1625127753164,3.519,2130.6,2130.2,0.00861359]
[1625127754288,8.0,2130.7,2130.2,0.00861359]
[1625127754390,8.0,2130.7,2130.3,0.14]
[1625127754494,8.0,2130.7,2130.4,5.01]
[1625127754592,6.85,2131.3,2130.5,28.2]
[1625127754794,6.85,2131.3,2130.7,5.01]
[1625127754938,6.85,2131.3,2130.7,11.26587146]
[1625127755121,6.85,2131.3,2130.8,5.01]
[1625127755319,6.85,2131.3,2131.0,7.03468]
[1625127755518,6.85,2131.3,2131.0,12.04468]
[1625127755719,6.85,2131.3,2131.1,0.06]
[1625127756221,6.10581075,2132.0,2131.2,28.2]
[1625127756321,31.6829,2132.2,2131.4,5.01]
[1625127756322,20.9683,2132.2,2131.4,5.01]
[1625127756422,20.9683,2132.2,2131.6,7.03266]
[1625127756522,10.28,2132.2,2131.6,7.03266]
[1625127756623,10.28,2132.2,2131.6,7.23266]
[1625127756721,10.28,2132.2,2131.8,5.01]
[1625127756820,6.19267678,2132.5,2131.8,8.7469]
[1625127756920,6.19267678,2132.5,2131.8,8.78682196]
[1625127757021,6.19267678,2132.5,2131.9,0.06]
[1625127757154,10.0168,2132.6,2131.9,0.06]
[1625127757361,10.0168,2132.6,2132.0,0.03686288]
[1625127757455,17.0493,2132.6,2132.0,0.03686288]
[1625127757560,17.0493,2132.6,2131.9,0.06]
[1625127757657,17.0493,2132.6,2132.1,0.12]
[1625127757856,17.0493,2132.6,2132.0,1.2887]
[1625127757857,7.0325,2132.6,2132.0,1.2887]
[1625127757957,3.51656,2132.2,2132.0,1.2887]
[1625127758062,6.85,2132.6,2132.0,6.2987]
[1625127758157,6.85,2132.6,2132.0,1.2887]
[1625127758258,6.85,2132.6,2132.1,0.2]
[1625127758758,6.85,2132.6,2132.1,7.23086]
[1625127758857,6.85,2132.6,2132.3,5.01]
[1625127758960,6.85,2132.6,2132.3,8.6192]
[1625127759260,6.85,2132.6,2132.4,0.2]
[1625127759518,6.85,2132.6,2132.5,0.2]
[1625127759619,6.83896531,2132.6,2132.5,0.2]
[1625127759718,0.01119647,2132.8,2132.5,0.2]
[1625127760121,0.01119647,2132.8,2132.4,1.2419]
[1625127760829,6.112179,2132.8,2132.3,3.6092]
[1625127760923,6.112179,2132.8,2131.7,9.37531]
[1625127761122,0.01119647,2132.8,2131.7,9.37531]
[1625127761220,7.3553263,2132.8,2131.7,9.37531]
[1625127761319,7.3553263,2132.8,2131.8,0.04]
[1625127761417,15.3553263,2132.8,2131.8,0.04]
[1625127761850,15.3553263,2132.8,2131.2,2.7]
[1625127761851,5.01,2132.6,2131.2,2.7]
[1625127761954,3.51678,2132.2,2131.1,21.70131]
[1625127762050,6.84428473,2132.1,2131.1,21.70131]
[1625127762249,6.84428473,2132.1,2131.1,11.71731]
[1625127762350,6.56356673,2132.1,2131.1,11.71731]
[1625127762451,6.53138475,2132.1,2131.2,0.1]
[1625127763250,6.53138475,2132.1,2131.2,7.13368]
[1625127763454,6.53138475,2132.1,2131.2,0.1]
[1625127763557,3.51686,2131.8,2131.2,0.1]
[1625127763653,3.51686,2131.8,2131.3,0.06]
[1625127763909,3.51686,2131.8,2131.2,0.00811825]
[1625127764505,6.47164231,2132.3,2131.2,0.00811825]
[1625127764610,7.12384477,2132.4,2131.2,0.00811825]
[1625127765204,7.12384477,2132.4,2131.3,5.09]
[1625127765306,14.15612477,2132.4,2131.3,12.12205]
[1625127765706,14.15612477,2132.4,2131.4,5.01]
[1625127765806,14.15612477,2132.4,2131.5,5.01]
[1625127765906,14.15612477,2132.4,2131.5,5.19]
[1625127766011,3.51618,2132.2,2131.5,0.18]
[1625127766157,3.51618,2132.2,2131.2,0.00811825]
[1625127766158,6.59781345,2132.1,2131.2,5.01811825]
[1625127766356,42.7676092,2132.5,2131.2,5.01811825]
[1625127766357,7.03358,2132.0,2131.2,5.01811825]
[1625127766454,7.03358,2132.0,2131.2,0.00811825]
[1625127766455,6.37311268,2131.9,2131.2,0.00811825]
[1625127766554,6.37311268,2131.9,2131.4,5.01]
[1625127766655,7.03358,2132.0,2131.2,0.00811825]
[1625127766758,6.190032,2131.9,2131.2,0.00811825]
[1625127766856,6.190032,2131.9,2131.3,0.12]
[1625127766954,7.03358,2132.0,2131.3,0.12]
[1625127767055,7.03358,2132.0,2131.2,0.00811825]
[1625127767155,3.51689,2131.8,2131.2,0.00811825]
[1625127767559,3.51689,2131.8,2131.3,5.01]
[1625127767855,3.51689,2131.8,2131.4,0.2]
[1625127768920,20.98069202,2132.3,2131.4,0.2]
[1625127769719,20.98069202,2132.3,2131.3,12.04243]
[1625127770024,3.51611,2132.2,2131.3,12.04243]
[1625127770230,6.57201915,2132.1,2131.3,12.04243]
[1625127770421,6.57201915,2132.1,2131.4,0.04]
[1625127770675,6.57201915,2132.1,2131.4,7.07231]
[1625127772281,6.44619715,2132.1,2131.4,7.07231]
[1625127772383,6.44619715,2132.1,2131.6,5.01]
[1625127772632,6.19006864,2132.2,2131.7,0.1]
[1625127772735,6.85,2132.3,2131.7,3.7438]
[1625127772902,10.8488,2132.5,2131.9,5.01]
[1625127773000,6.07641911,2132.6,2131.9,5.01]
[1625127773100,6.11905007,2132.6,2132.0,5.01]
[1625127773300,6.11905007,2132.6,2132.1,0.1]
[1625127773500,10.1269,2132.7,2132.1,0.1]
[1625127773600,6.38464641,2132.8,2132.1,0.1]
[1625127774002,3.51576,2132.7,2132.1,0.1]
[1625127774103,6.25448753,2132.6,2131.8,1.4992]
[1625127774203,3.51576,2132.7,2131.7,3.6438]
[1625127774302,6.34684297,2132.6,2131.7,3.6438]
[1625127774402,6.34684297,2132.6,2132.2,0.00771692]
[1625127774501,3.51576,2132.7,2132.2,0.00771692]
[1625127774800,6.30156384,2132.6,2132.2,0.00771692]
[1625127774901,6.33569847,2132.6,2132.2,0.00771692]
[1625127776077,13.36743847,2132.6,2132.2,0.00771692]
[1625127776172,14.33569847,2132.6,2132.2,0.00771692]
[1625127776673,6.33569847,2132.6,2132.2,0.00771692]
[1625127776873,8.0,2132.6,2132.2,0.00771692]
[1625127777070,3.51576,2132.7,2132.2,0.00771692]
[1625127778420,7.03223,2132.5,2132.2,0.00771692]
[1625127779023,8.0,2132.6,2132.2,0.00771692]
[1625127779523,3.51576,2132.7,2132.2,0.00771692]
[1625127779766,0.01119647,2132.8,2132.2,0.00771692]